[Event "Late-Titled-Tuesday-Blitz-January-16-2024"]
[Site "Chess.com"]
[Date "2024.01.16"]
[Round "1"]
[White "The_Sherman_Variation"]
[Black "KVAIDAN"]
[Result "1/2-1/2"]
[WhiteElo "2689"]
[BlackElo "2382"]
[TimeControl "180+1"]
[EndTime "14:07:54 PST"]
[Termination "Game drawn by repetition"]

1. b3 {[%clk 0:03:00.9]} 1... f5 {[%clk 0:02:58.9]} 2. Bb2 {[%clk 0:02:58.6]}
2... d6 {[%clk 0:02:59.2]} 3. f4 {[%clk 0:02:54.6]} 3... Nf6 {[%clk 0:02:58.3]}
4. Nf3 {[%clk 0:02:53.9]} 4... Nc6 {[%clk 0:02:58.5]} 5. e3 {[%clk 0:02:53.6]}
5... e6 {[%clk 0:02:57.7]} 6. Nc3 {[%clk 0:02:53.1]} 6... Be7 {[%clk 0:02:57.2]}
7. Be2 {[%clk 0:02:52.6]} 7... O-O {[%clk 0:02:56.4]} 8. O-O {[%clk 0:02:52.4]}
8... Qe8 {[%clk 0:02:55.1]} 9. Qe1 {[%clk 0:02:48.1]} 9... e5 {[%clk 0:02:55.3]}
10. Nd1 {[%clk 0:02:36.6]} 10... e4 {[%clk 0:02:43.2]} 11. Nd4 {[%clk
0:02:33.9]} 11... Nxd4 {[%clk 0:02:41.3]} 12. Bxd4 {[%clk 0:02:34.8]} 12... c5
{[%clk 0:02:33.1]} 13. Bb2 {[%clk 0:02:33.8]} 13... d5 {[%clk 0:02:33.3]} 14. c4
{[%clk 0:02:29.5]} 14... Be6 {[%clk 0:02:30.9]} 15. cxd5 {[%clk 0:02:27.4]}
15... Nxd5 {[%clk 0:02:28.1]} 16. Rc1 {[%clk 0:02:25.6]} 16... b6 {[%clk
0:02:27.3]} 17. Qg3 {[%clk 0:02:16.7]} 17... Qf7 {[%clk 0:02:26.4]} 18. Bc4
{[%clk 0:02:13.9]} 18... Rad8 {[%clk 0:02:25.9]} 19. Be5 {[%clk 0:02:06.7]}
19... Bf6 {[%clk 0:02:25.4]} 20. Bxf6 {[%clk 0:02:02.5]} 20... Qxf6 {[%clk
0:02:23.1]} 21. a3 {[%clk 0:02:00.1]} 21... Nc7 {[%clk 0:02:21.1]} 22. Bxe6+
{[%clk 0:01:50.7]} 22... Qxe6 {[%clk 0:02:19.6]} 23. b4 {[%clk 0:01:44.9]} 23...
Rxd2 {[%clk 0:02:14.4]} 24. bxc5 {[%clk 0:01:43.8]} 24... bxc5 {[%clk 0:02:13]}
25. Rxc5 {[%clk 0:01:42.4]} 25... Nd5 {[%clk 0:02:10.4]} 26. Qe1 {[%clk
0:01:33.9]} 26... Rd3 {[%clk 0:02:06.6]} 27. Qa5 {[%clk 0:01:32.2]} 27... Nxe3
{[%clk 0:01:54.5]} 28. Nxe3 {[%clk 0:01:31.9]} 28... Rxe3 {[%clk 0:01:54.4]} 29.
Qxa7 {[%clk 0:01:30.6]} 29... Re2 {[%clk 0:01:45.5]} 30. Rc7 {[%clk 0:01:26.2]}
30... Qg6 {[%clk 0:01:45.2]} 31. g3 {[%clk 0:01:16.4]} 31... Rd2 {[%clk
0:01:44.1]} 32. Qa5 {[%clk 0:01:09]} 32... Rb2 {[%clk 0:01:40.3]} 33. Qc3 {[%clk
0:01:08]} 33... Rbb8 {[%clk 0:01:32.8]} 34. Qc4+ {[%clk 0:01:07.6]} 34... Kh8
{[%clk 0:01:32.4]} 35. a4 {[%clk 0:01:08]} 35... Rg8 {[%clk 0:01:25.9]} 36. a5
{[%clk 0:01:06.8]} 36... e3 {[%clk 0:01:25.2]} 37. Re1 {[%clk 0:01:05.8]} 37...
Rbe8 {[%clk 0:01:23.9]} 38. Qd3 {[%clk 0:00:57.1]} 38... Qe6 {[%clk 0:01:20.1]}
39. Rc3 {[%clk 0:00:52.4]} 39... e2 {[%clk 0:01:19.2]} 40. Rc2 {[%clk
0:00:50.9]} 40... Qe3+ {[%clk 0:01:10.2]} 41. Qxe3 {[%clk 0:00:50.3]} 41... Rxe3
{[%clk 0:01:10.7]} 42. Rcxe2 {[%clk 0:00:50.3]} 42... Ra3 {[%clk 0:01:11.6]} 43.
Re5 {[%clk 0:00:50.1]} 43... g6 {[%clk 0:01:12.1]} 44. Rd1 {[%clk 0:00:47.8]}
44... Ra8 {[%clk 0:01:10.7]} 45. Rd7 {[%clk 0:00:44.8]} 45... Ra2 {[%clk
0:01:02.9]} 46. Ree7 {[%clk 0:00:39.2]} 46... R8xa5 {[%clk 0:01:01.2]} 47. Rxh7+
{[%clk 0:00:38.3]} 47... Kg8 {[%clk 0:01:00.9]} 48. Rhg7+ {[%clk 0:00:34.5]}
48... Kf8 {[%clk 0:01:01.3]} 49. Rgf7+ {[%clk 0:00:22.1]} 49... Ke8 {[%clk
0:01:00.6]} 50. Rfe7+ {[%clk 0:00:21.6]} 50... Kf8 {[%clk 0:01:00]} 51. Re1
{[%clk 0:00:20.6]} 51... Rc5 {[%clk 0:00:57]} 52. Rd6 {[%clk 0:00:17.1]} 52...
Rcc2 {[%clk 0:00:55.7]} 53. Rxg6 {[%clk 0:00:14.8]} 53... Rg2+ {[%clk
0:00:54.9]} 54. Kh1 {[%clk 0:00:15.2]} 54... Rxh2+ {[%clk 0:00:54.5]} 55. Kg1
{[%clk 0:00:15.8]} 55... Rag2+ {[%clk 0:00:46.7]} 56. Kf1 {[%clk 0:00:15.6]}
56... Rf2+ {[%clk 0:00:46.2]} 57. Kg1 {[%clk 0:00:16]} 57... Rfg2+ {[%clk
0:00:46.1]} 58. Kf1 {[%clk 0:00:16.2]} 58... Kf7 {[%clk 0:00:47]} 59. Rg5 {[%clk
0:00:16]} 59... Kf6 {[%clk 0:00:47.2]} 60. Re5 {[%clk 0:00:15.6]} 60... Rf2+
{[%clk 0:00:47.2]} 61. Ke1 {[%clk 0:00:15.3]} 61... Ra2 {[%clk 0:00:45.4]} 62.
Rgxf5+ {[%clk 0:00:15.7]} 62... Kg6 {[%clk 0:00:45.8]} 63. Rg5+ {[%clk
0:00:16.2]} 63... Kh6 {[%clk 0:00:45.8]} 64. Re6+ {[%clk 0:00:14.2]} 64... Kh7
{[%clk 0:00:45.3]} 65. Re7+ {[%clk 0:00:14.3]} 65... Kh6 {[%clk 0:00:45.7]} 66.
Re6+ {[%clk 0:00:12.9]} 66... Kh7 {[%clk 0:00:46]} 67. Re7+ {[%clk 0:00:10.7]}
67... Kh6 {[%clk 0:00:46.9]} 68. Re6+ {[%clk 0:00:10]} 1/2-1/2

[Event "Late-Titled-Tuesday-Blitz-January-16-2024"]
[Site "Chess.com"]
[Date "2024.01.16"]
[Round "1"]
[White "lrjchess"]
[Black "mbojan"]
[Result "0-1"]
[WhiteElo "2466"]
[BlackElo "2866"]
[TimeControl "180+1"]
[EndTime "14:08:00 PST"]
[Termination "mbojan won by checkmate"]

1. e4 {[%clk 0:03:00.9]} 1... a6 {[%clk 0:03:00.9]} 2. d4 {[%clk 0:03:00.5]}
2... e6 {[%clk 0:03:00.7]} 3. Nc3 {[%clk 0:03:00.8]} 3... d5 {[%clk 0:03:00.7]}
4. exd5 {[%clk 0:02:57.6]} 4... exd5 {[%clk 0:03:00]} 5. Bd3 {[%clk 0:02:58.5]}
5... c6 {[%clk 0:02:55.1]} 6. Bf4 {[%clk 0:02:54.1]} 6... Bd6 {[%clk 0:02:54.2]}
7. Qf3 {[%clk 0:02:49.6]} 7... Nf6 {[%clk 0:02:46.3]} 8. Bg5 {[%clk 0:02:34.6]}
8... Nbd7 {[%clk 0:02:17.3]} 9. Nge2 {[%clk 0:02:25.6]} 9... O-O {[%clk
0:02:15.9]} 10. O-O {[%clk 0:02:18.7]} 10... Re8 {[%clk 0:02:15.5]} 11. Ng3
{[%clk 0:02:18]} 11... h6 {[%clk 0:02:13.9]} 12. Bxf6 {[%clk 0:02:17.7]} 12...
Qxf6 {[%clk 0:02:12]} 13. Nf5 {[%clk 0:02:08]} 13... Bf8 {[%clk 0:02:08.8]} 14.
Rfe1 {[%clk 0:02:05.7]} 14... Rxe1+ {[%clk 0:02:07.4]} 15. Rxe1 {[%clk
0:02:05.5]} 15... g6 {[%clk 0:02:08]} 16. Re8 {[%clk 0:01:50.1]} 16... gxf5
{[%clk 0:01:27.5]} 17. Qg3+ {[%clk 0:01:23.2]} 17... Qg5 {[%clk 0:01:01]} 18.
Qc7 {[%clk 0:01:20.9]} 18... Qc1+ {[%clk 0:00:38.2]} 19. Bf1 {[%clk 0:01:19.3]}
19... Qxb2 {[%clk 0:00:38.2]} 20. Ne2 {[%clk 0:01:08.7]} 20... Nf6 {[%clk
0:00:37.8]} 21. Rxc8 {[%clk 0:00:50.5]} 21... Rxc8 {[%clk 0:00:38.7]} 22. Qxc8
{[%clk 0:00:51.4]} 22... Qxc2 {[%clk 0:00:38.5]} 23. Ng3 {[%clk 0:00:52.1]}
23... Ng4 {[%clk 0:00:31.5]} 24. Nh1 {[%clk 0:00:38.8]} 24... b5 {[%clk
0:00:17.5]} 25. h3 {[%clk 0:00:37.2]} 25... Nf6 {[%clk 0:00:15.6]} 26. Ng3
{[%clk 0:00:37.7]} 26... Ne4 {[%clk 0:00:14.9]} 27. Qxf5 {[%clk 0:00:34.9]}
27... Bg7 {[%clk 0:00:09.6]} 28. Nh5 {[%clk 0:00:13.7]} 28... Qxf2+ {[%clk
0:00:03.1]} 29. Qxf2 {[%clk 0:00:13.3]} 29... Nxf2 {[%clk 0:00:04]} 30. Kxf2
{[%clk 0:00:14]} 30... Bxd4+ {[%clk 0:00:03.9]} 31. Ke2 {[%clk 0:00:14.7]} 31...
Be5 {[%clk 0:00:03.4]} 32. Kd3 {[%clk 0:00:13]} 32... Kf8 {[%clk 0:00:03.7]} 33.
g4 {[%clk 0:00:13.2]} 33... Ke7 {[%clk 0:00:04]} 34. Bg2 {[%clk 0:00:14]} 34...
Kd6 {[%clk 0:00:04]} 35. h4 {[%clk 0:00:13.2]} 35... c5 {[%clk 0:00:04.3]} 36.
g5 {[%clk 0:00:13.2]} 36... hxg5 {[%clk 0:00:04.8]} 37. hxg5 {[%clk 0:00:14.1]}
37... c4+ {[%clk 0:00:05.6]} 38. Ke3 {[%clk 0:00:13.8]} 38... d4+ {[%clk
0:00:05.7]} 39. Ke4 {[%clk 0:00:14.3]} 39... d3 {[%clk 0:00:06.3]} 40. Bf3
{[%clk 0:00:14.1]} 40... a5 {[%clk 0:00:04.1]} 41. Bd1 {[%clk 0:00:14]} 41... a4
{[%clk 0:00:04.6]} 42. Ke3 {[%clk 0:00:09.7]} 42... a3 {[%clk 0:00:04.6]} 43.
Kd2 {[%clk 0:00:09.3]} 43... b4 {[%clk 0:00:04.9]} 44. Ba4 {[%clk 0:00:09.5]}
44... b3 {[%clk 0:00:04.7]} 45. axb3 {[%clk 0:00:07.7]} 45... a2 {[%clk
0:00:05.6]} 46. bxc4 {[%clk 0:00:08.2]} 46... a1=Q {[%clk 0:00:05.5]} 47. Bb5
{[%clk 0:00:09.1]} 47... Qc3+ {[%clk 0:00:05.8]} 48. Ke3 {[%clk 0:00:09.4]}
48... d2+ {[%clk 0:00:05.6]} 49. Ke4 {[%clk 0:00:10.3]} 49... d1=Q {[%clk
0:00:05.2]} 50. Kf5 {[%clk 0:00:09.3]} 50... Qxh5 {[%clk 0:00:04.8]} 51. Bc6
{[%clk 0:00:08.9]} 51... Qg6+ {[%clk 0:00:04.7]} 52. Kg4 {[%clk 0:00:08.9]}
52... Qg3# {[%clk 0:00:05.6]} 0-1

[Event "Late-Titled-Tuesday-Blitz-January-16-2024"]
[Site "Chess.com"]
[Date "2024.01.16"]
[Round "1"]
[White "Heinza9"]
[Black "MKlose11"]
[Result "0-1"]
[WhiteElo "2337"]
[BlackElo "2646"]
[TimeControl "180+1"]
[EndTime "14:08:02 PST"]
[Termination "MKlose11 won on time"]

1. e4 {[%clk 0:02:52.5]} 1... e6 {[%clk 0:02:16.7]} 2. c4 {[%clk 0:02:51.6]}
2... d5 {[%clk 0:02:07.4]} 3. cxd5 {[%clk 0:02:51.7]} 3... exd5 {[%clk
0:02:07.9]} 4. exd5 {[%clk 0:02:51.9]} 4... Nf6 {[%clk 0:02:08.5]} 5. Bb5+
{[%clk 0:02:50.9]} 5... Bd7 {[%clk 0:02:08.6]} 6. Bc4 {[%clk 0:02:51.2]} 6...
Bd6 {[%clk 0:02:06.1]} 7. Nc3 {[%clk 0:02:50.6]} 7... O-O {[%clk 0:02:07]} 8.
Nge2 {[%clk 0:02:50.3]} 8... Re8 {[%clk 0:02:07.4]} 9. h3 {[%clk 0:02:50.5]}
9... Bf5 {[%clk 0:02:01.5]} 10. d4 {[%clk 0:02:48.1]} 10... Nbd7 {[%clk
0:02:01.6]} 11. Be3 {[%clk 0:02:45.9]} 11... Nb6 {[%clk 0:02:01.7]} 12. Bb3
{[%clk 0:02:45.3]} 12... Bb4 {[%clk 0:01:55.8]} 13. Ng3 {[%clk 0:02:39.7]} 13...
Bg6 {[%clk 0:01:54.2]} 14. O-O {[%clk 0:02:38.6]} 14... Nfxd5 {[%clk 0:01:51.7]}
15. Nxd5 {[%clk 0:02:30.3]} 15... Nxd5 {[%clk 0:01:52.6]} 16. Qf3 {[%clk
0:02:28.8]} 16... c6 {[%clk 0:01:46.2]} 17. Rad1 {[%clk 0:02:26.7]} 17... Qd7
{[%clk 0:01:43.9]} 18. a3 {[%clk 0:02:23]} 18... Ba5 {[%clk 0:01:43.2]} 19. Ne2
{[%clk 0:02:06.7]} 19... Be4 {[%clk 0:01:14.8]} 20. Qg3 {[%clk 0:02:06.6]} 20...
Nxe3 {[%clk 0:01:13.7]} 21. fxe3 {[%clk 0:02:06.2]} 21... Bd5 {[%clk 0:01:14.1]}
22. Bc2 {[%clk 0:02:03.6]} 22... g6 {[%clk 0:00:49.5]} 23. Nf4 {[%clk
0:01:59.4]} 23... Bc7 {[%clk 0:00:32.6]} 24. Qf2 {[%clk 0:01:53.2]} 24... Bxf4
{[%clk 0:00:26]} 25. Qxf4 {[%clk 0:01:48.5]} 25... f5 {[%clk 0:00:24.6]} 26.
Rfe1 {[%clk 0:01:32.6]} 26... Re7 {[%clk 0:00:18.8]} 27. e4 {[%clk 0:01:31.1]}
27... fxe4 {[%clk 0:00:14.1]} 28. Bxe4 {[%clk 0:01:31.2]} 28... Bxe4 {[%clk
0:00:12.5]} 29. Rxe4 {[%clk 0:01:31.3]} 29... Rxe4 {[%clk 0:00:13.4]} 30. Qxe4
{[%clk 0:01:31.3]} 30... Re8 {[%clk 0:00:14.3]} 31. Qf4 {[%clk 0:01:27.9]} 31...
Qf7 {[%clk 0:00:10.5]} 32. Qd2 {[%clk 0:01:08.5]} 32... Rd8 {[%clk 0:00:09.1]}
33. Qc3 {[%clk 0:00:55.7]} 33... Rd5 {[%clk 0:00:08.4]} 34. Rf1 {[%clk
0:00:51.6]} 34... Rf5 {[%clk 0:00:04.1]} 35. Rxf5 {[%clk 0:00:48]} 35... Qxf5
{[%clk 0:00:05]} 36. Qb3+ {[%clk 0:00:46]} 36... Qf7 {[%clk 0:00:03.4]} 37. Qe3
{[%clk 0:00:43.8]} 37... Kf8 {[%clk 0:00:02.8]} 38. Kh2 {[%clk 0:00:42.9]} 38...
Qe7 {[%clk 0:00:03.2]} 39. Qf4+ {[%clk 0:00:37.4]} 39... Kg7 {[%clk 0:00:03.2]}
40. h4 {[%clk 0:00:35.1]} 40... a6 {[%clk 0:00:03.7]} 41. b4 {[%clk 0:00:30.5]}
41... b5 {[%clk 0:00:04]} 42. Kh3 {[%clk 0:00:27.3]} 42... Qf6 {[%clk
0:00:04.4]} 43. Qe4 {[%clk 0:00:25.8]} 43... Kf7 {[%clk 0:00:03.6]} 44. Kg3
{[%clk 0:00:23.6]} 44... Qe6 {[%clk 0:00:03.8]} 45. Qf4+ {[%clk 0:00:23.1]}
45... Ke7 {[%clk 0:00:03.5]} 46. Qc7+ {[%clk 0:00:22.7]} 46... Kf6 {[%clk
0:00:04.1]} 47. Qd8+ {[%clk 0:00:21.9]} 47... Kf5 {[%clk 0:00:04.3]} 48. Qf8+
{[%clk 0:00:13.2]} 48... Ke4 {[%clk 0:00:04.5]} 49. Qf4+ {[%clk 0:00:12.7]}
49... Kd5 {[%clk 0:00:04.7]} 50. Qc1 {[%clk 0:00:04.9]} 50... Kxd4 {[%clk
0:00:03.7]} 51. Qc5+ {[%clk 0:00:04]} 51... Kd3 {[%clk 0:00:03.8]} 52. Qf8
{[%clk 0:00:02.1]} 52... h5 {[%clk 0:00:02.6]} 0-1

[Event "Late-Titled-Tuesday-Blitz-January-16-2024"]
[Site "Chess.com"]
[Date "2024.01.16"]
[Round "1"]
[White "JaackCamel"]
[Black "Nf3c5"]
[Result "0-1"]
[WhiteElo "2154"]
[BlackElo "2560"]
[TimeControl "180+1"]
[EndTime "14:08:03 PST"]
[Termination "Nf3c5 won on time"]

1. d4 {[%clk 0:03:00.9]} 1... Nf6 {[%clk 0:02:59.3]} 2. c4 {[%clk 0:03:00]} 2...
e6 {[%clk 0:02:58.6]} 3. Nc3 {[%clk 0:02:59.6]} 3... Bb4 {[%clk 0:02:55.6]} 4.
e3 {[%clk 0:02:59.1]} 4... O-O {[%clk 0:02:54.3]} 5. Bd3 {[%clk 0:02:57.5]} 5...
d5 {[%clk 0:02:53.8]} 6. Nf3 {[%clk 0:02:55.9]} 6... dxc4 {[%clk 0:02:51]} 7.
Bxc4 {[%clk 0:02:55.8]} 7... c5 {[%clk 0:02:51.8]} 8. O-O {[%clk 0:02:55.5]}
8... Nc6 {[%clk 0:02:32.2]} 9. a3 {[%clk 0:02:50.5]} 9... Bxc3 {[%clk
0:02:30.4]} 10. bxc3 {[%clk 0:02:49.7]} 10... Qc7 {[%clk 0:02:31.3]} 11. Bd3
{[%clk 0:02:37.6]} 11... e5 {[%clk 0:02:17.8]} 12. dxe5 {[%clk 0:02:17.7]} 12...
Nxe5 {[%clk 0:02:12.2]} 13. Nxe5 {[%clk 0:02:14.9]} 13... Qxe5 {[%clk
0:02:12.6]} 14. h3 {[%clk 0:02:03.8]} 14... Bf5 {[%clk 0:01:50.2]} 15. Bxf5
{[%clk 0:02:02.4]} 15... Qxf5 {[%clk 0:01:50.3]} 16. c4 {[%clk 0:01:56.1]} 16...
Rad8 {[%clk 0:01:45.5]} 17. Qb3 {[%clk 0:01:48.2]} 17... b6 {[%clk 0:01:39.5]}
18. Bb2 {[%clk 0:01:46]} 18... Ne4 {[%clk 0:01:38]} 19. Rad1 {[%clk 0:01:26]}
19... Nd2 {[%clk 0:01:31.4]} 20. Qc3 {[%clk 0:01:09.9]} 20... Nf3+ {[%clk
0:00:57.5]} 21. gxf3 {[%clk 0:01:02.6]} 21... f6 {[%clk 0:00:57.6]} 22. Rxd8
{[%clk 0:00:51.7]} 22... Rxd8 {[%clk 0:00:55.4]} 23. Kg2 {[%clk 0:00:34.1]}
23... Qg6+ {[%clk 0:00:40.8]} 24. Kh2 {[%clk 0:00:31.9]} 24... Qf5 {[%clk
0:00:37.4]} 25. Rg1 {[%clk 0:00:28.9]} 25... Kf7 {[%clk 0:00:30]} 26. Rg3 {[%clk
0:00:25.2]} 26... Rd3 {[%clk 0:00:30.5]} 27. Qc2 {[%clk 0:00:22.3]} 27... Qd7
{[%clk 0:00:30.5]} 28. Kg2 {[%clk 0:00:21.7]} 28... h5 {[%clk 0:00:28.7]} 29. f4
{[%clk 0:00:17.6]} 29... h4 {[%clk 0:00:25.7]} 30. Rg4 {[%clk 0:00:17.6]} 30...
Qc6+ {[%clk 0:00:21.4]} 31. Kh2 {[%clk 0:00:16.2]} 31... Qd7 {[%clk 0:00:14.3]}
32. Kg1 {[%clk 0:00:14.2]} 32... a6 {[%clk 0:00:12.5]} 33. Kh2 {[%clk
0:00:13.9]} 33... b5 {[%clk 0:00:09.5]} 34. cxb5 {[%clk 0:00:13.4]} 34... axb5
{[%clk 0:00:10.4]} 35. Rxh4 {[%clk 0:00:13.5]} 35... Rd2 {[%clk 0:00:10.1]} 36.
Qc3 {[%clk 0:00:12]} 36... Rxf2+ {[%clk 0:00:09.1]} 37. Kg3 {[%clk 0:00:12.3]}
37... Rd2 {[%clk 0:00:04.8]} 38. Rg4 {[%clk 0:00:12.3]} 38... Rd3 {[%clk
0:00:02.7]} 39. Rxg7+ {[%clk 0:00:09.3]} 39... Kxg7 {[%clk 0:00:03.6]} 40. Qxf6+
{[%clk 0:00:09.1]} 40... Kg8 {[%clk 0:00:04.5]} 41. Qh8+ {[%clk 0:00:08.9]}
41... Kf7 {[%clk 0:00:05.2]} 42. Qg7+ {[%clk 0:00:08]} 42... Ke8 {[%clk
0:00:05.4]} 43. Qg8+ {[%clk 0:00:06.9]} 43... Ke7 {[%clk 0:00:05.9]} 44. Qg5+
{[%clk 0:00:05.9]} 44... Kd6 {[%clk 0:00:04.8]} 45. Be5+ {[%clk 0:00:05.9]}
45... Kc6 {[%clk 0:00:05.7]} 46. Qf6+ {[%clk 0:00:05.9]} 46... Kb7 {[%clk
0:00:06.1]} 47. Qg6 {[%clk 0:00:02.6]} 47... Rxe3+ {[%clk 0:00:05.3]} 48. Kh4
{[%clk 0:00:02]} 48... Qxh3+ {[%clk 0:00:04.4]} 49. Kg5 {[%clk 0:00:02.1]} 49...
Rg3+ {[%clk 0:00:05.3]} 50. Kf6 {[%clk 0:00:02.4]} 50... Rxg6+ {[%clk
0:00:05.4]} 51. Kxg6 {[%clk 0:00:02.3]} 51... Qe6+ {[%clk 0:00:06]} 52. Kg5
{[%clk 0:00:02.3]} 52... Kc6 {[%clk 0:00:04.9]} 0-1

[Event "Late-Titled-Tuesday-Blitz-January-16-2024"]
[Site "Chess.com"]
[Date "2024.01.16"]
[Round "1"]
[White "Grindaveci"]
[Black "vladislavkovalev"]
[Result "1-0"]
[WhiteElo "2474"]
[BlackElo "2834"]
[TimeControl "180+1"]
[EndTime "14:08:05 PST"]
[Termination "Grindaveci won on time"]

1. e4 {[%clk 0:02:58.8]} 1... e5 {[%clk 0:02:59.1]} 2. Nf3 {[%clk 0:02:58.8]}
2... Nc6 {[%clk 0:02:59.7]} 3. Bc4 {[%clk 0:02:58.7]} 3... Nf6 {[%clk
0:02:59.8]} 4. d3 {[%clk 0:02:58.8]} 4... Bc5 {[%clk 0:03:00.3]} 5. c3 {[%clk
0:02:58.4]} 5... d6 {[%clk 0:03:00.9]} 6. O-O {[%clk 0:02:58.4]} 6... a6 {[%clk
0:03:01]} 7. Re1 {[%clk 0:02:57.8]} 7... h6 {[%clk 0:03:01.4]} 8. a4 {[%clk
0:02:57.5]} 8... Ba7 {[%clk 0:03:01.3]} 9. Nbd2 {[%clk 0:02:53.7]} 9... O-O
{[%clk 0:03:01.3]} 10. h3 {[%clk 0:02:53.6]} 10... Be6 {[%clk 0:03:00]} 11. Bxe6
{[%clk 0:02:51.3]} 11... fxe6 {[%clk 0:03:00.9]} 12. b4 {[%clk 0:02:48.7]} 12...
Ne7 {[%clk 0:03:00.7]} 13. Nf1 {[%clk 0:02:47]} 13... Ng6 {[%clk 0:03:00.9]} 14.
Be3 {[%clk 0:02:47]} 14... Bxe3 {[%clk 0:02:58.7]} 15. Rxe3 {[%clk 0:02:47.9]}
15... Qd7 {[%clk 0:02:56.7]} 16. g3 {[%clk 0:02:45.8]} 16... Rf7 {[%clk
0:02:57.2]} 17. N1h2 {[%clk 0:02:40.5]} 17... a5 {[%clk 0:02:56.2]} 18. Qb3
{[%clk 0:02:24.1]} 18... axb4 {[%clk 0:02:55.7]} 19. cxb4 {[%clk 0:02:24.2]}
19... Rff8 {[%clk 0:02:37.9]} 20. Ree1 {[%clk 0:02:21.8]} 20... Kh7 {[%clk
0:02:31.7]} 21. a5 {[%clk 0:02:15.4]} 21... c6 {[%clk 0:02:28.6]} 22. Kg2 {[%clk
0:02:00]} 22... Nh5 {[%clk 0:02:23.7]} 23. d4 {[%clk 0:01:43.5]} 23... exd4
{[%clk 0:02:16.9]} 24. Nxd4 {[%clk 0:01:43.3]} 24... Rae8 {[%clk 0:02:09.6]} 25.
Rad1 {[%clk 0:01:34.9]} 25... Qf7 {[%clk 0:01:59.4]} 26. Ndf3 {[%clk 0:01:25.6]}
26... d5 {[%clk 0:01:56.4]} 27. b5 {[%clk 0:01:18.3]} 27... Nf6 {[%clk
0:01:20.4]} 28. Nd2 {[%clk 0:00:46.6]} 28... cxb5 {[%clk 0:00:57.1]} 29. Qxb5
{[%clk 0:00:36.6]} 29... Nxe4 {[%clk 0:00:56.7]} 30. Nxe4 {[%clk 0:00:36]} 30...
dxe4 {[%clk 0:00:57.6]} 31. Rd2 {[%clk 0:00:32.7]} 31... Rd8 {[%clk 0:00:51]}
32. Rb2 {[%clk 0:00:27.5]} 32... Rd5 {[%clk 0:00:27.9]} 33. Qxb7 {[%clk
0:00:25.2]} 33... Qxb7 {[%clk 0:00:28.5]} 34. Rxb7 {[%clk 0:00:25.8]} 34... Rd2
{[%clk 0:00:24.8]} 35. Rf1 {[%clk 0:00:10]} 35... e3 {[%clk 0:00:25.1]} 36. Ng4
{[%clk 0:00:10.7]} 36... exf2 {[%clk 0:00:16.4]} 37. Rxf2 {[%clk 0:00:10.8]}
37... Rfxf2+ {[%clk 0:00:16.9]} 38. Nxf2 {[%clk 0:00:11.7]} 38... Ne5 {[%clk
0:00:17.8]} 39. Kf1 {[%clk 0:00:10.9]} 39... Ra2 {[%clk 0:00:18.1]} 40. Rb5
{[%clk 0:00:10.5]} 40... Nc4 {[%clk 0:00:18]} 41. Rb4 {[%clk 0:00:08.7]} 41...
Ne3+ {[%clk 0:00:07.7]} 42. Kg1 {[%clk 0:00:08.4]} 42... Rxa5 {[%clk 0:00:05.1]}
43. Re4 {[%clk 0:00:08.3]} 43... Ra1+ {[%clk 0:00:02.7]} 44. Kh2 {[%clk
0:00:08.3]} 44... Ra2 {[%clk 0:00:02.2]} 45. Kg1 {[%clk 0:00:08.5]} 45... Ra1+
{[%clk 0:00:02.4]} 46. Kh2 {[%clk 0:00:08.8]} 46... Ra2 {[%clk 0:00:03.2]} 47.
Kg1 {[%clk 0:00:09.3]} 47... Nf5 {[%clk 0:00:03.2]} 48. g4 {[%clk 0:00:08.6]}
48... Ra1+ {[%clk 0:00:01.6]} 49. Kg2 {[%clk 0:00:08.2]} 49... Nh4+ {[%clk
0:00:01.7]} 50. Kg3 {[%clk 0:00:08.7]} 1-0